[Event "*** Titled Tuesday Blitz"]
[Site "Chess.com"]
[Date "2020.05.26"]
[Round "8"]
[White "ChessQueen"]
[Black "SoltaniciR"]
[Result "1-0"]
[WhiteElo "2626"]
[BlackElo "2469"]
[TimeControl "180+1"]
[EndTime "11:42:05 PDT"]
[Termination "ChessQueen won on time"]

1. e4 {[%clk 0:03:00.9]} 1... c5 {[%clk 0:02:59.8]} 2. c3 {[%clk 0:02:59.8]}
2... e6 {[%clk 0:02:59.5]} 3. d4 {[%clk 0:02:59.5]} 3... d5 {[%clk 0:02:59.6]}
4. exd5 {[%clk 0:02:59.7]} 4... exd5 {[%clk 0:02:59.2]} 5. Nf3 {[%clk
0:03:00.3]} 5... Nc6 {[%clk 0:02:59.2]} 6. Bb5 {[%clk 0:02:56.8]} 6... Nf6
{[%clk 0:02:58.9]} 7. O-O {[%clk 0:02:54.1]} 7... Bd6 {[%clk 0:02:59.4]} 8. dxc5
{[%clk 0:02:50.3]} 8... Bxc5 {[%clk 0:02:58.9]} 9. Nbd2 {[%clk 0:02:50.6]} 9...
O-O {[%clk 0:02:56.7]} 10. Nb3 {[%clk 0:02:50.8]} 10... Bb6 {[%clk 0:02:55.4]}
11. h3 {[%clk 0:02:46.3]} 11... a6 {[%clk 0:02:51.1]} 12. Bd3 {[%clk 0:02:45.6]}
12... Ne4 {[%clk 0:02:35.7]} 13. Nfd4 {[%clk 0:02:23.4]} 13... Qf6 {[%clk
0:02:20.1]} 14. Be3 {[%clk 0:02:19.1]} 14... Ne5 {[%clk 0:02:19.4]} 15. Bc2
{[%clk 0:02:14.3]} 15... Nc4 {[%clk 0:02:15.4]} 16. Bc1 {[%clk 0:02:10.1]} 16...
Bd7 {[%clk 0:01:54]} 17. Qe1 {[%clk 0:02:02.3]} 17... Rfe8 {[%clk 0:01:46.5]}
18. f3 {[%clk 0:02:02.2]} 18... Ned2 {[%clk 0:01:18.5]} 19. Qf2 {[%clk
0:01:19.9]} 19... Nxf1 {[%clk 0:01:17.1]} 20. Kxf1 {[%clk 0:01:20.7]} 20... Re7
{[%clk 0:01:06.6]} 21. h4 {[%clk 0:01:19.1]} 21... h6 {[%clk 0:01:06]} 22. Qg3
{[%clk 0:01:01.9]} 22... Rae8 {[%clk 0:01:00.6]} 23. Bf4 {[%clk 0:01:01.9]}
23... Ne3+ {[%clk 0:00:50.7]} 24. Bxe3 {[%clk 0:01:02]} 24... Rxe3 {[%clk
0:00:51.5]} 25. Rd1 {[%clk 0:01:02.3]} 25... Qe5 {[%clk 0:00:41.1]} 26. Qxe5
{[%clk 0:01:01.5]} 26... R3xe5 {[%clk 0:00:39.3]} 27. Bd3 {[%clk 0:00:54.6]}
27... a5 {[%clk 0:00:35.7]} 28. Kf2 {[%clk 0:00:51]} 28... a4 {[%clk 0:00:34.8]}
29. Nc1 {[%clk 0:00:51.2]} 29... Bf5 {[%clk 0:00:14.1]} 30. f4 {[%clk
0:00:45.3]} 30... Bg4 {[%clk 0:00:08.3]} 31. Rd2 {[%clk 0:00:36.6]} 31... R5e7
{[%clk 0:00:06.9]} 32. Ne2 {[%clk 0:00:33.3]} 32... Bd7 {[%clk 0:00:06]} 33. Ng3
{[%clk 0:00:26.7]} 33... g6 {[%clk 0:00:05.5]} 34. h5 {[%clk 0:00:25.8]} 34...
Kg7 {[%clk 0:00:05.7]} 35. Be2 {[%clk 0:00:19.7]} 35... Bc6 {[%clk 0:00:02.5]}
36. Bf3 {[%clk 0:00:18.6]} 36... Rd8 {[%clk 0:00:01.6]} 37. Kf1 {[%clk
0:00:17.5]} 37... Bc5 {[%clk 0:00:01.9]} 38. Ngf5+ {[%clk 0:00:17.3]} 38... gxf5
{[%clk 0:00:01.3]} 39. Nxf5+ {[%clk 0:00:18.2]} 39... Kf6 {[%clk 0:00:01.7]} 40.
Nxe7 {[%clk 0:00:19.1]} 40... Kxe7 {[%clk 0:00:02.5]} 41. g4 {[%clk 0:00:19]}
41... Kf6 {[%clk 0:00:03]} 42. Kg2 {[%clk 0:00:19.3]} 42... Bd6 {[%clk
0:00:03.2]} 43. Kg3 {[%clk 0:00:19.6]} 43... Bc7 {[%clk 0:00:03.7]} 44. Rd4
{[%clk 0:00:19.4]} 44... b6 {[%clk 0:00:02.9]} 45. c4 {[%clk 0:00:17.5]} 45...
dxc4 {[%clk 0:00:01.5]} 46. Rxd8 {[%clk 0:00:17.6]} 46... Bxd8 {[%clk
0:00:01.8]} 47. Bxc6 {[%clk 0:00:18.2]} 47... Bc7 {[%clk 0:00:02.2]} 48. Bxa4
{[%clk 0:00:18.2]} 48... Ke6 {[%clk 0:00:01.9]} 49. Bc6 {[%clk 0:00:17.6]} 49...
Kd6 {[%clk 0:00:01.5]} 50. Be4 {[%clk 0:00:17.7]} 50... f6 {[%clk 0:00:01.5]}
51. Kf3 {[%clk 0:00:17.2]} 51... Kc5 {[%clk 0:00:02.4]} 52. Ke3 {[%clk
0:00:16.7]} 52... b5 {[%clk 0:00:02.6]} 53. Bf5 {[%clk 0:00:16.4]} 53... Bd8
{[%clk 0:00:03.5]} 54. Be6 {[%clk 0:00:16.7]} 54... b4 {[%clk 0:00:03.8]} 55.
Ke4 {[%clk 0:00:16.2]} 55... Bc7 {[%clk 0:00:03.1]} 56. Ke3 {[%clk 0:00:16.2]}
56... Bb6 {[%clk 0:00:02.6]} 57. Ke4 {[%clk 0:00:15.4]} 57... Bc7 {[%clk
0:00:03]} 58. Bf7 {[%clk 0:00:14.2]} 58... Bb8 {[%clk 0:00:03.2]} 59. b3 {[%clk
0:00:14.5]} 59... Bc7 {[%clk 0:00:03.5]} 60. Bxc4 {[%clk 0:00:14.2]} 60... Bb8
{[%clk 0:00:03.3]} 61. Be2 {[%clk 0:00:14.1]} 61... Bc7 {[%clk 0:00:03.4]} 62.
Bd3 {[%clk 0:00:15]} 62... Bb8 {[%clk 0:00:03.8]} 63. Kf5 {[%clk 0:00:15.1]}
63... Bc7 {[%clk 0:00:03.8]} 64. g5 {[%clk 0:00:14.7]} 64... fxg5 {[%clk
0:00:03.3]} 65. fxg5 {[%clk 0:00:15.6]} 1-0

[Event "*** Titled Tuesday Blitz"]
[Site "Chess.com"]
[Date "2020.05.26"]
[Round "8"]
[White "Kapibara_Warri0r"]
[Black "MariaFominykh"]
[Result "1-0"]
[WhiteElo "2124"]
[BlackElo "2332"]
[TimeControl "180+1"]
[EndTime "11:42:05 PDT"]
[Termination "Kapibara_Warri0r won on time"]

1. e4 {[%clk 0:03:00.9]} 1... d6 {[%clk 0:02:58.8]} 2. d4 {[%clk 0:03:00.2]}
2... Nf6 {[%clk 0:02:59.2]} 3. Nc3 {[%clk 0:03:00.2]} 3... e5 {[%clk 0:02:58.6]}
4. Nf3 {[%clk 0:02:58.4]} 4... Nbd7 {[%clk 0:02:57.9]} 5. Be2 {[%clk 0:02:57.4]}
5... Be7 {[%clk 0:02:57.9]} 6. Qd3 {[%clk 0:02:34.7]} 6... O-O {[%clk
0:02:52.3]} 7. O-O {[%clk 0:02:32.3]} 7... c6 {[%clk 0:02:45]} 8. a4 {[%clk
0:02:23.2]} 8... a5 {[%clk 0:02:31.6]} 9. b3 {[%clk 0:02:17.5]} 9... Re8 {[%clk
0:02:27.7]} 10. Bb2 {[%clk 0:02:09.6]} 10... Qc7 {[%clk 0:02:17.5]} 11. d5
{[%clk 0:01:55.5]} 11... cxd5 {[%clk 0:01:31.7]} 12. exd5 {[%clk 0:01:51.5]}
12... Nc5 {[%clk 0:01:19.9]} 13. Nb5 {[%clk 0:01:28.1]} 13... Qd7 {[%clk
0:00:45.7]} 14. Qd2 {[%clk 0:01:27.6]} 14... b6 {[%clk 0:00:39.6]} 15. Na3
{[%clk 0:01:21.5]} 15... Qb7 {[%clk 0:00:25.3]} 16. Bb5 {[%clk 0:01:18.1]} 16...
Rd8 {[%clk 0:00:22.7]} 17. Bc6 {[%clk 0:01:17]} 17... Qa7 {[%clk 0:00:21.6]} 18.
Bxa8 {[%clk 0:01:17]} 18... Qxa8 {[%clk 0:00:21.7]} 19. Rad1 {[%clk 0:01:09.6]}
19... Bb7 {[%clk 0:00:21.5]} 20. Nc4 {[%clk 0:00:44.2]} 20... Nxd5 {[%clk
0:00:20.2]} 21. Ne3 {[%clk 0:00:37.6]} 21... Nf4 {[%clk 0:00:18.2]} 22. Nf5
{[%clk 0:00:30.3]} 22... Bf8 {[%clk 0:00:17.1]} 23. N5h4 {[%clk 0:00:27.4]}
23... Nxg2 {[%clk 0:00:15.6]} 24. Kxg2 {[%clk 0:00:21]} 24... Ne4 {[%clk
0:00:13.1]} 25. Qe3 {[%clk 0:00:19.5]} 25... Be7 {[%clk 0:00:12.3]} 26. Nf5
{[%clk 0:00:18.2]} 26... Bf6 {[%clk 0:00:07.4]} 27. Kg1 {[%clk 0:00:17]} 27...
Nc5 {[%clk 0:00:05.7]} 28. N3h4 {[%clk 0:00:16.5]} 28... d5 {[%clk 0:00:04.6]}
29. c4 {[%clk 0:00:13.3]} 29... d4 {[%clk 0:00:04.6]} 30. Qg3 {[%clk 0:00:13.1]}
30... Ne4 {[%clk 0:00:04.5]} 31. Qg4 {[%clk 0:00:12.4]} 31... Kh8 {[%clk
0:00:03.7]} 32. Rde1 {[%clk 0:00:10.4]} 32... Ng5 {[%clk 0:00:03.7]} 33. f3
{[%clk 0:00:10.1]} 33... Ne6 {[%clk 0:00:03.7]} 34. Qg2 {[%clk 0:00:09.6]} 34...
Nf4 {[%clk 0:00:03.8]} 35. Qg3 {[%clk 0:00:10]} 35... Ne6 {[%clk 0:00:03.8]} 36.
Rd1 {[%clk 0:00:08.4]} 36... Nf4 {[%clk 0:00:03.8]} 37. Rd2 {[%clk 0:00:08.6]}
37... d3 {[%clk 0:00:04]} 38. Ng2 {[%clk 0:00:06.2]} 38... Ne2+ {[%clk
0:00:04.1]} 39. Rxe2 {[%clk 0:00:06.7]} 39... dxe2 {[%clk 0:00:04.2]} 40. Re1
{[%clk 0:00:07]} 40... Rd1 {[%clk 0:00:04.1]} 41. Bc3 {[%clk 0:00:06]} 41...
Bxf3 {[%clk 0:00:02.8]} 42. Qf2 {[%clk 0:00:05.3]} 42... Bxg2 {[%clk 0:00:02.8]}
43. Qxg2 {[%clk 0:00:05.1]} 43... Qxg2+ {[%clk 0:00:02.6]} 44. Kxg2 {[%clk
0:00:06]} 44... Rxe1 {[%clk 0:00:02]} 45. Bxe1 {[%clk 0:00:06.9]} 45... e4
{[%clk 0:00:02.4]} 46. Ng3 {[%clk 0:00:06.7]} 46... g6 {[%clk 0:00:03]} 47. Nxe4
{[%clk 0:00:06.9]} 47... Bd4 {[%clk 0:00:03.6]} 48. Ng3 {[%clk 0:00:06]} 48...
f5 {[%clk 0:00:03.9]} 49. Nxe2 {[%clk 0:00:06.4]} 49... Bc5 {[%clk 0:00:04.5]}
50. Nf4 {[%clk 0:00:06.1]} 50... Kg7 {[%clk 0:00:05.1]} 51. Nd5 {[%clk
0:00:06.6]} 51... Kf7 {[%clk 0:00:04.7]} 52. Bc3 {[%clk 0:00:06.8]} 52... Ke6
{[%clk 0:00:04.6]} 53. Kf3 {[%clk 0:00:06.9]} 53... g5 {[%clk 0:00:04.5]} 54.
Bf6 {[%clk 0:00:06.6]} 54... h6 {[%clk 0:00:04.1]} 55. Bg7 {[%clk 0:00:06.3]}
55... g4+ {[%clk 0:00:03.8]} 56. Kg3 {[%clk 0:00:06.1]} 56... Bd6+ {[%clk
0:00:03.5]} 57. Kg2 {[%clk 0:00:05.9]} 57... h5 {[%clk 0:00:03.7]} 58. Bh6
{[%clk 0:00:05.9]} 58... Bc5 {[%clk 0:00:02.3]} 59. Bf4 {[%clk 0:00:05.6]} 59...
h4 {[%clk 0:00:02.4]} 60. Bc7 {[%clk 0:00:05.6]} 60... h3+ {[%clk 0:00:02.4]}
61. Kg3 {[%clk 0:00:05.2]} 1-0

[Event "*** Titled Tuesday Blitz"]
[Site "Chess.com"]
[Date "2020.05.26"]
[Round "8"]
[White "yobdc"]
[Black "StephenDedalus83"]
[Result "1-0"]
[WhiteElo "2111"]
[BlackElo "2713"]
[TimeControl "180+1"]
[EndTime "11:42:06 PDT"]
[Termination "yobdc won by resignation"]

1. c4 {[%clk 0:03:00]} 1... g6 {[%clk 0:02:55.2]} 2. g3 {[%clk 0:02:59.6]} 2...
Bg7 {[%clk 0:02:55]} 3. Bg2 {[%clk 0:03:00]} 3... c5 {[%clk 0:02:55]} 4. Nf3
{[%clk 0:02:59.8]} 4... e5 {[%clk 0:02:54.8]} 5. Nc3 {[%clk 0:02:59.7]} 5... Ne7
{[%clk 0:02:54.7]} 6. d3 {[%clk 0:02:59.5]} 6... Nbc6 {[%clk 0:02:53.8]} 7. a3
{[%clk 0:02:59]} 7... a5 {[%clk 0:02:53]} 8. Rb1 {[%clk 0:02:58.4]} 8... d6
{[%clk 0:02:53]} 9. O-O {[%clk 0:02:58]} 9... O-O {[%clk 0:02:52.7]} 10. Ne1
{[%clk 0:02:58.3]} 10... Be6 {[%clk 0:02:51.9]} 11. Nc2 {[%clk 0:02:54.8]} 11...
d5 {[%clk 0:02:51.7]} 12. cxd5 {[%clk 0:02:54.9]} 12... Nxd5 {[%clk 0:02:51.6]}
13. Ne3 {[%clk 0:02:52.5]} 13... Nde7 {[%clk 0:02:51.1]} 14. Bd2 {[%clk
0:02:51.5]} 14... b6 {[%clk 0:02:50.3]} 15. Nc4 {[%clk 0:02:44.1]} 15... Rb8
{[%clk 0:02:47.5]} 16. Qc1 {[%clk 0:02:42.6]} 16... Nd4 {[%clk 0:02:36.4]} 17.
Be3 {[%clk 0:02:06]} 17... b5 {[%clk 0:02:13.5]} 18. Nd2 {[%clk 0:02:05.1]}
18... Nef5 {[%clk 0:02:05.1]} 19. Bxd4 {[%clk 0:01:59.5]} 19... Nxd4 {[%clk
0:02:04.2]} 20. e3 {[%clk 0:01:54.3]} 20... Nf5 {[%clk 0:02:03.4]} 21. Qc2
{[%clk 0:01:53.2]} 21... Qb6 {[%clk 0:01:53.5]} 22. Rfd1 {[%clk 0:01:44.1]}
22... Rfd8 {[%clk 0:01:49.7]} 23. Nde4 {[%clk 0:01:34.1]} 23... Bf8 {[%clk
0:01:45.1]} 24. b3 {[%clk 0:01:18]} 24... Be7 {[%clk 0:01:36.9]} 25. a4 {[%clk
0:01:18]} 25... b4 {[%clk 0:01:34.1]} 26. Nb5 {[%clk 0:00:58.1]} 26... Bd7
{[%clk 0:01:32.6]} 27. Nd2 {[%clk 0:00:45.4]} 27... Bxb5 {[%clk 0:01:31.5]} 28.
axb5 {[%clk 0:00:46.3]} 28... Qxb5 {[%clk 0:01:31.2]} 29. Nc4 {[%clk 0:00:46.6]}
29... a4 {[%clk 0:00:56.3]} 30. bxa4 {[%clk 0:00:46]} 30... Qa6 {[%clk
0:00:55.7]} 31. Qb3 {[%clk 0:00:44.6]} 31... Bf6 {[%clk 0:00:54.2]} 32. Be4
{[%clk 0:00:36.8]} 32... Ne7 {[%clk 0:00:53.3]} 33. Rdc1 {[%clk 0:00:35.3]}
33... Bg7 {[%clk 0:00:48.2]} 34. Nd2 {[%clk 0:00:34.5]} 34... Kf8 {[%clk
0:00:46.4]} 35. Rxc5 {[%clk 0:00:33.9]} 35... f5 {[%clk 0:00:46.1]} 36. Bf3
{[%clk 0:00:17.5]} 36... e4 {[%clk 0:00:44.5]} 37. dxe4 {[%clk 0:00:15]} 37...
Rxd2 {[%clk 0:00:43.3]} 38. exf5 {[%clk 0:00:15.2]} 38... gxf5 {[%clk
0:00:42.3]} 39. Rbc1 {[%clk 0:00:14.9]} 39... Qd6 {[%clk 0:00:31.9]} 40. Bh5
{[%clk 0:00:14.4]} 40... Nd5 {[%clk 0:00:22.3]} 41. Rc8+ {[%clk 0:00:13.8]}
41... Rxc8 {[%clk 0:00:21.5]} 42. Rxc8+ {[%clk 0:00:14.7]} 42... Ke7 {[%clk
0:00:21.7]} 43. Re8+ {[%clk 0:00:13.1]} 43... Kd7 {[%clk 0:00:20.8]} 44. Qc4
{[%clk 0:00:12.5]} 44... Qc6 {[%clk 0:00:18.9]} 45. Rd8+ {[%clk 0:00:12.2]}
45... Kc7 {[%clk 0:00:18.5]} 46. Rc8+ {[%clk 0:00:12]} 46... Kxc8 {[%clk
0:00:18.6]} 47. Qxc6+ {[%clk 0:00:12.2]} 47... Kd8 {[%clk 0:00:19.1]} 48. Qd6+
{[%clk 0:00:10.2]} 48... Kc8 {[%clk 0:00:18.5]} 49. Qe6+ {[%clk 0:00:10]} 49...
Kb8 {[%clk 0:00:17.7]} 50. Qg8+ {[%clk 0:00:09.8]} 50... Ka7 {[%clk 0:00:17.7]}
51. Qxg7+ {[%clk 0:00:10]} 51... Kb6 {[%clk 0:00:18.3]} 52. Qh6+ {[%clk
0:00:09]} 52... Ka5 {[%clk 0:00:17]} 53. e4 {[%clk 0:00:09.4]} 53... Rd4 {[%clk
0:00:15.3]} 54. exd5 {[%clk 0:00:09.2]} 54... b3 {[%clk 0:00:15.8]} 55. Qc6
{[%clk 0:00:08.4]} 55... Rxa4 {[%clk 0:00:14.1]} 56. Be8 {[%clk 0:00:08]} 56...
Ra1+ {[%clk 0:00:13.7]} 57. Kg2 {[%clk 0:00:07.9]} 57... Kb4 {[%clk 0:00:14.3]}
58. Qb5+ {[%clk 0:00:07.7]} 58... Kc3 {[%clk 0:00:14.4]} 59. d6 {[%clk
0:00:07.1]} 59... b2 {[%clk 0:00:14.3]} 60. Qc5+ {[%clk 0:00:07.1]} 60... Kd2
{[%clk 0:00:11.5]} 61. Qd4+ {[%clk 0:00:07.3]} 61... Kc2 {[%clk 0:00:10.8]} 62.
Ba4+ {[%clk 0:00:07.3]} 1-0

[Event "*** Titled Tuesday Blitz"]
[Site "Chess.com"]
[Date "2020.05.26"]
[Round "8"]
[White "cioxminator"]
[Black "freshfoodcompany"]
[Result "1/2-1/2"]
[WhiteElo "2408"]
[BlackElo "2208"]
[TimeControl "180+1"]
[EndTime "11:42:07 PDT"]
[Termination "Game drawn - insufficient material"]

1. e4 {[%clk 0:03:00.9]} 1... c5 {[%clk 0:02:59]} 2. b4 {[%clk 0:02:59.9]} 2...
cxb4 {[%clk 0:02:58.6]} 3. a3 {[%clk 0:03:00.2]} 3... d5 {[%clk 0:02:58.7]} 4.
exd5 {[%clk 0:02:59.2]} 4... Qxd5 {[%clk 0:02:57]} 5. Nf3 {[%clk 0:02:59.6]}
5... Bg4 {[%clk 0:02:55]} 6. axb4 {[%clk 0:02:58.2]} 6... Bxf3 {[%clk
0:02:51.4]} 7. Qxf3 {[%clk 0:02:57.4]} 7... Qxf3 {[%clk 0:02:29.7]} 8. gxf3
{[%clk 0:02:56.7]} 8... Nc6 {[%clk 0:02:28]} 9. c3 {[%clk 0:02:54]} 9... g6
{[%clk 0:02:24.2]} 10. f4 {[%clk 0:02:45.5]} 10... Bg7 {[%clk 0:02:22.3]} 11. d4
{[%clk 0:02:37.4]} 11... Rc8 {[%clk 0:02:16]} 12. Na3 {[%clk 0:02:29.9]} 12...
Nf6 {[%clk 0:01:45.3]} 13. Bg2 {[%clk 0:02:28.4]} 13... O-O {[%clk 0:01:26.4]}
14. Bd2 {[%clk 0:02:12.7]} 14... a6 {[%clk 0:01:14.9]} 15. Nc2 {[%clk
0:02:10.3]} 15... e6 {[%clk 0:01:08.5]} 16. Ke2 {[%clk 0:01:58.5]} 16... Rc7
{[%clk 0:00:57]} 17. Rhb1 {[%clk 0:01:58]} 17... Ne7 {[%clk 0:00:54.1]} 18. b5
{[%clk 0:01:51.9]} 18... Ned5 {[%clk 0:00:48]} 19. Kd3 {[%clk 0:01:21.4]} 19...
Rfc8 {[%clk 0:00:39.5]} 20. Ra3 {[%clk 0:01:14.6]} 20... Bh6 {[%clk 0:00:29]}
21. bxa6 {[%clk 0:01:09.4]} 21... bxa6 {[%clk 0:00:27.6]} 22. Bf3 {[%clk
0:00:54.1]} 22... Bxf4 {[%clk 0:00:19.6]} 23. Rbb3 {[%clk 0:00:53.5]} 23... Bxd2
{[%clk 0:00:19.1]} 24. Kxd2 {[%clk 0:00:53.2]} 24... a5 {[%clk 0:00:17.2]} 25.
Ne3 {[%clk 0:00:51.7]} 25... a4 {[%clk 0:00:17]} 26. Rxa4 {[%clk 0:00:27.3]}
26... Nxc3 {[%clk 0:00:17.3]} 27. Rab4 {[%clk 0:00:25.3]} 27... Nce4+ {[%clk
0:00:16.8]} 28. Ke2 {[%clk 0:00:23.2]} 28... Nc3+ {[%clk 0:00:15.6]} 29. Kd3
{[%clk 0:00:22.5]} 29... Ncd5 {[%clk 0:00:14.9]} 30. Rb8 {[%clk 0:00:21.8]}
30... Rc3+ {[%clk 0:00:13]} 31. Rxc3 {[%clk 0:00:20.2]} 31... Rxb8 {[%clk
0:00:12.7]} 32. Ra3 {[%clk 0:00:18.4]} 32... Nxe3 {[%clk 0:00:12.4]} 33. fxe3
{[%clk 0:00:17.8]} 33... Rb1 {[%clk 0:00:12.3]} 34. h3 {[%clk 0:00:17]} 34...
Kg7 {[%clk 0:00:12.2]} 35. e4 {[%clk 0:00:14.9]} 35... Rb6 {[%clk 0:00:12.1]}
36. e5 {[%clk 0:00:15.1]} 36... Nd5 {[%clk 0:00:11.7]} 37. Bxd5 {[%clk
0:00:15.1]} 37... exd5 {[%clk 0:00:11.9]} 38. Ra5 {[%clk 0:00:14.6]} 38... Rb3+
{[%clk 0:00:12.3]} 39. Ke2 {[%clk 0:00:13.4]} 39... Rxh3 {[%clk 0:00:12.6]} 40.
Rxd5 {[%clk 0:00:13.9]} 40... Kf8 {[%clk 0:00:12.7]} 41. Rd7 {[%clk 0:00:13.5]}
41... Ke8 {[%clk 0:00:12.6]} 42. Ra7 {[%clk 0:00:11.5]} 42... Rb3 {[%clk
0:00:12.7]} 43. Ra8+ {[%clk 0:00:10.5]} 43... Ke7 {[%clk 0:00:12]} 44. Ra7+
{[%clk 0:00:10.6]} 44... Ke6 {[%clk 0:00:12.3]} 45. Ra6+ {[%clk 0:00:10.6]}
45... Ke7 {[%clk 0:00:11.4]} 46. Ra7+ {[%clk 0:00:10.5]} 46... Ke6 {[%clk
0:00:11.5]} 47. Ra6+ {[%clk 0:00:10.5]} 47... Kd5 {[%clk 0:00:10]} 48. Rd6+
{[%clk 0:00:10]} 48... Ke4 {[%clk 0:00:09.8]} 49. Rd7 {[%clk 0:00:10.1]} 49...
Rb2+ {[%clk 0:00:09.8]} 50. Kf1 {[%clk 0:00:09.8]} 50... Rb4 {[%clk 0:00:08.3]}
51. Rxf7 {[%clk 0:00:08.7]} 51... Rxd4 {[%clk 0:00:07.5]} 52. e6 {[%clk
0:00:08.9]} 52... Rd8 {[%clk 0:00:07.2]} 53. e7 {[%clk 0:00:07.8]} 53... Re8
{[%clk 0:00:07.4]} 54. Rxh7 {[%clk 0:00:08.4]} 54... Kf5 {[%clk 0:00:07]} 55.
Kf2 {[%clk 0:00:07.6]} 55... Kf6 {[%clk 0:00:06.8]} 56. Kf3 {[%clk 0:00:07.5]}
56... Rxe7 {[%clk 0:00:07]} 57. Rxe7 {[%clk 0:00:07.2]} 57... Kxe7 {[%clk
0:00:07.3]} 58. Kg4 {[%clk 0:00:07.7]} 58... Kf6 {[%clk 0:00:07.7]} 59. Kf4
{[%clk 0:00:07.8]} 59... g5+ {[%clk 0:00:08.6]} 60. Kg4 {[%clk 0:00:07.9]} 60...
Kg6 {[%clk 0:00:08.8]} 61. Kg3 {[%clk 0:00:08]} 61... Kf5 {[%clk 0:00:09.1]} 62.
Kf3 {[%clk 0:00:08]} 62... g4+ {[%clk 0:00:10]} 63. Kg3 {[%clk 0:00:08]} 63...
Kg5 {[%clk 0:00:10.9]} 64. Kg2 {[%clk 0:00:08.2]} 64... Kf4 {[%clk 0:00:11.8]}
65. Kf2 {[%clk 0:00:08.1]} 65... g3+ {[%clk 0:00:12.7]} 66. Kg2 {[%clk
0:00:08.2]} 66... Kg4 {[%clk 0:00:13.6]} 67. Kg1 {[%clk 0:00:08.3]} 67... Kf3
{[%clk 0:00:14.5]} 68. Kf1 {[%clk 0:00:08.2]} 68... g2+ {[%clk 0:00:13.5]} 69.
Kg1 {[%clk 0:00:08.2]} 69... Ke2 {[%clk 0:00:14.2]} 70. Kxg2 {[%clk 0:00:07.7]}
1/2-1/2

[Event "*** Titled Tuesday Blitz"]
[Site "Chess.com"]
[Date "2020.05.26"]
[Round "8"]
[White "AlexZambrano"]
[Black "Alexandercs432"]
[Result "0-1"]
[WhiteElo "2254"]
[BlackElo "2132"]
[TimeControl "180+1"]
[EndTime "11:42:08 PDT"]
[Termination "Alexandercs432 won on time"]

1. Nf3 {[%clk 0:03:00]} 1... d5 {[%clk 0:02:59.3]} 2. g3 {[%clk 0:02:59]} 2...
c6 {[%clk 0:02:58]} 3. Bg2 {[%clk 0:02:58.9]} 3... Bg4 {[%clk 0:02:58.5]} 4. d4
{[%clk 0:02:58.9]} 4... Nf6 {[%clk 0:02:56.8]} 5. O-O {[%clk 0:02:58.5]} 5... e6
{[%clk 0:02:56.2]} 6. c4 {[%clk 0:02:57.9]} 6... Nbd7 {[%clk 0:02:55.8]} 7. Nc3
{[%clk 0:02:58.2]} 7... Be7 {[%clk 0:02:55.1]} 8. Bf4 {[%clk 0:02:52.3]} 8...
O-O {[%clk 0:02:54.3]} 9. Re1 {[%clk 0:02:49.9]} 9... Re8 {[%clk 0:02:53.1]} 10.
h3 {[%clk 0:02:46.7]} 10... Bh5 {[%clk 0:02:52.4]} 11. g4 {[%clk 0:02:44.4]}
11... Bg6 {[%clk 0:02:52.4]} 12. Nh4 {[%clk 0:02:39.4]} 12... a5 {[%clk
0:02:48.1]} 13. Nxg6 {[%clk 0:02:37.9]} 13... hxg6 {[%clk 0:02:49]} 14. cxd5
{[%clk 0:02:32.9]} 14... exd5 {[%clk 0:02:47.1]} 15. Qc2 {[%clk 0:02:29.1]}
15... Bf8 {[%clk 0:02:39.9]} 16. e3 {[%clk 0:02:17.1]} 16... Nb6 {[%clk
0:02:38.8]} 17. b3 {[%clk 0:02:16.4]} 17... Nc8 {[%clk 0:02:36.6]} 18. Na4
{[%clk 0:02:14.7]} 18... Ne4 {[%clk 0:02:33.4]} 19. Nc5 {[%clk 0:02:10.4]} 19...
Nxc5 {[%clk 0:02:28.9]} 20. dxc5 {[%clk 0:02:10.5]} 20... Qf6 {[%clk 0:02:11.4]}
21. Rad1 {[%clk 0:02:05.4]} 21... g5 {[%clk 0:02:10.3]} 22. Bg3 {[%clk
0:02:01.4]} 22... Ne7 {[%clk 0:02:10.2]} 23. e4 {[%clk 0:01:59.1]} 23... Rad8
{[%clk 0:02:03.9]} 24. e5 {[%clk 0:01:28.5]} 24... Qg6 {[%clk 0:02:03.3]} 25.
Qd2 {[%clk 0:01:28.8]} 25... Qe6 {[%clk 0:01:50.8]} 26. Qxa5 {[%clk 0:01:25.1]}
26... Ra8 {[%clk 0:01:43.4]} 27. Qd2 {[%clk 0:01:25]} 27... Qg6 {[%clk 0:01:40]}
28. a4 {[%clk 0:01:02.2]} 28... Nc8 {[%clk 0:01:39.2]} 29. Rc1 {[%clk 0:01:01]}
29... Na7 {[%clk 0:01:32.5]} 30. Qb4 {[%clk 0:01:00.2]} 30... Re7 {[%clk
0:01:24.8]} 31. Qc3 {[%clk 0:00:52.2]} 31... Rae8 {[%clk 0:01:17.4]} 32. b4
{[%clk 0:00:50.5]} 32... Re6 {[%clk 0:01:16.3]} 33. Qb3 {[%clk 0:00:47.8]} 33...
f6 {[%clk 0:01:09.6]} 34. Qb2 {[%clk 0:00:35.4]} 34... Nc8 {[%clk 0:01:01.5]}
35. b5 {[%clk 0:00:34.6]} 35... Kh8 {[%clk 0:00:57.9]} 36. bxc6 {[%clk
0:00:32.7]} 36... bxc6 {[%clk 0:00:58.8]} 37. a5 {[%clk 0:00:33.1]} 37... Na7
{[%clk 0:00:57.4]} 38. Bf1 {[%clk 0:00:29]} 38... f5 {[%clk 0:00:50.2]} 39. a6
{[%clk 0:00:25.1]} 39... f4 {[%clk 0:00:48.9]} 40. Bh2 {[%clk 0:00:23.6]} 40...
Qf7 {[%clk 0:00:39.6]} 41. Qb7 {[%clk 0:00:18.5]} 41... R6e7 {[%clk 0:00:38.6]}
42. Qb6 {[%clk 0:00:16.8]} 42... Qe6 {[%clk 0:00:36.8]} 43. Bd3 {[%clk
0:00:15.4]} 43... Rd8 {[%clk 0:00:33.1]} 44. Bf5 {[%clk 0:00:15.1]} 44... Qf7
{[%clk 0:00:32.9]} 45. f3 {[%clk 0:00:09.5]} 45... Rde8 {[%clk 0:00:32.1]} 46.
Qb2 {[%clk 0:00:08.5]} 46... Nb5 {[%clk 0:00:26.9]} 47. Kg2 {[%clk 0:00:07]}
47... d4 {[%clk 0:00:26.9]} 48. Bd3 {[%clk 0:00:05]} 48... Nc3 {[%clk
0:00:27.8]} 49. Qb4 {[%clk 0:00:03.9]} 49... Nd5 {[%clk 0:00:28.7]} 50. Qxd4
{[%clk 0:00:03.9]} 50... Ne3+ {[%clk 0:00:29.4]} 51. Rxe3 {[%clk 0:00:04]} 51...
fxe3 {[%clk 0:00:29.2]} 52. Qxe3 {[%clk 0:00:04.5]} 52... Rd7 {[%clk 0:00:23.8]}
53. Qe4 {[%clk 0:00:04.8]} 53... g6 {[%clk 0:00:22.5]} 54. Qxg6 {[%clk
0:00:02.6]} 54... Qxg6 {[%clk 0:00:23.4]} 55. Bxg6 {[%clk 0:00:02.9]} 55... Rd2+
{[%clk 0:00:23.9]} 56. Kg1 {[%clk 0:00:02.9]} 56... Red8 {[%clk 0:00:23.9]} 57.
Be4 {[%clk 0:00:02]} 57... Ra2 {[%clk 0:00:21.8]} 58. Bxc6 {[%clk 0:00:01.5]}
58... Rdd2 {[%clk 0:00:21.7]} 0-1